bitfinex/quotes_BTCUSD_20250910
["timestamp","ask_amount","ask_price","bid_price","bid_amount"]
[1757523597350,0.02769647,113750.0,113740.0,0.97267596]
[1757523597793,0.02769647,113750.0,113740.0,0.82267596]
[1757523598042,0.02769647,113750.0,113740.0,1.37267596]
[1757523599811,0.02769647,113750.0,113740.0,0.97267596]
[1757523605842,0.02769647,113750.0,113740.0,0.82483596]
[1757523606017,0.02769647,113750.0,113740.0,0.97263596]
[1757523606473,0.00256989,113750.0,113740.0,0.90941876]
[1757523606915,0.00256989,113750.0,113740.0,0.98852672]
[1757523607117,0.00256989,113750.0,113740.0,1.01490583]
[1757523607321,0.00256989,113750.0,113740.0,1.41490583]
[1757523607725,0.00256989,113750.0,113740.0,1.33579787]
[1757523607929,0.00256989,113750.0,113740.0,1.41490583]
[1757523608789,0.18361406,113750.0,113740.0,0.91308787]
[1757523609006,0.03291647,113750.0,113740.0,0.82499134]
[1757523609213,0.03291647,113750.0,113740.0,1.17638134]
[1757523609858,0.03291647,113750.0,113740.0,1.17835134]
[1757523610072,0.20874064,113750.0,113740.0,1.02302134]
[1757523610276,0.20874064,113750.0,113740.0,1.17634134]
[1757523610421,0.20874064,113750.0,113740.0,1.02499134]
[1757523610626,0.20874064,113750.0,113740.0,1.17835134]
[1757523610828,0.20874064,113750.0,113740.0,1.17638134]
[1757523611577,0.20874064,113750.0,113740.0,1.17835134]
[1757523611995,0.03291647,113750.0,113740.0,1.17835134]
[1757523613440,0.02975647,113750.0,113740.0,1.17835134]
[1757523614010,0.03291647,113750.0,113740.0,1.17835134]
[1757523616159,0.02975647,113750.0,113740.0,1.17835134]
[1757523620163,0.03291647,113750.0,113740.0,1.17835134]
[1757523622030,0.02975647,113750.0,113740.0,1.17835134]
[1757523622813,0.03291647,113750.0,113740.0,1.17835134]
[1757523623022,0.02975647,113750.0,113740.0,1.17835134]
[1757523624953,0.02769647,113750.0,113740.0,1.18140134]
[1757523626928,0.02985647,113750.0,113740.0,1.17835134]
[1757523627537,0.02769647,113750.0,113740.0,1.18140134]
[1757523628842,0.02769647,113750.0,113740.0,1.24888134]
[1757523629922,0.02985647,113750.0,113740.0,1.24583134]
[1757523630131,0.02769647,113750.0,113740.0,1.24888134]
[1757523633889,0.02985647,113750.0,113740.0,1.24888134]
[1757523634098,0.02985647,113750.0,113740.0,1.24583134]
[1757523634922,0.02985647,113750.0,113740.0,1.24888134]
[1757523636836,0.02985647,113750.0,113740.0,1.24583134]
[1757523637318,0.02769647,113750.0,113740.0,1.24888134]
[1757523639179,0.02769647,113750.0,113740.0,1.18566787]
[1757523640170,0.03293647,113750.0,113740.0,1.02925787]
[1757523640417,0.02985647,113750.0,113740.0,1.24456357]
[1757523642700,0.03293647,113750.0,113740.0,1.24456357]
[1757523644479,0.03293647,113750.0,113740.0,1.24247357]
[1757523644693,0.03293647,113750.0,113740.0,1.24447357]
[1757523644874,0.03293647,113750.0,113740.0,1.24247357]
[1757523645537,0.03293647,113750.0,113740.0,1.24447357]
[1757523649476,0.02769647,113750.0,113740.0,1.24752357]
[1757523649913,0.02985647,113750.0,113740.0,1.24752357]
[1757523651257,0.02985647,113750.0,113740.0,1.24447357]
[1757523651676,0.02985647,113750.0,113740.0,1.24752357]
[1757523653481,0.00472989,113750.0,113740.0,1.24752357]
[1757523654409,0.00472989,113750.0,113740.0,1.24447357]
[1757523654611,0.00256989,113750.0,113740.0,1.24743357]
[1757523655050,0.00471989,113750.0,113740.0,1.24743357]
[1757523655665,0.00256989,113750.0,113740.0,1.24743357]
[1757523656083,0.00256989,113750.0,113740.0,1.20804787]
[1757523656280,0.00256989,113750.0,113740.0,1.28715583]
[1757523656511,0.00256989,113750.0,113740.0,1.68715583]
[1757523656685,0.00256989,113750.0,113740.0,1.91925583]
[1757523657130,0.00022158,113750.0,113740.0,1.91925583]
[1757523657332,0.00022158,113750.0,113740.0,1.84014787]
[1757523657539,0.0002,113760.0,113750.0,0.37582417]
[1757523657746,0.00024695,113760.0,113750.0,0.64825071]
[1757523657975,0.00024695,113760.0,113750.0,0.65040071]
[1757523658181,0.00024695,113760.0,113750.0,1.07677764]
[1757523658389,0.00024695,113760.0,113750.0,0.99768264]
[1757523659274,0.00024695,113760.0,113750.0,0.99778264]
[1757523662399,0.00024695,113760.0,113750.0,1.06094192]
[1757523665328,0.00024695,113760.0,113750.0,0.99778264]
[1757523668346,0.00024695,113760.0,113750.0,1.06090721]
[1757523668552,0.00024695,113760.0,113750.0,0.99778264]
[1757523669176,0.00024695,113760.0,113750.0,1.060902]
[1757523670966,0.00024695,113760.0,113750.0,0.909462]
[1757523679393,0.00024695,113760.0,113750.0,0.84634264]
[1757523680624,0.00319,113780.0,113770.0,0.37579326]
[1757523680805,0.00323692,113780.0,113770.0,0.42314216]
[1757523681007,0.00538692,113780.0,113770.0,0.42314216]
[1757523681748,0.00738692,113780.0,113770.0,0.42324216]
[1757523683350,0.00738692,113780.0,113770.0,0.43218564]
[1757523683542,0.00419692,113780.0,113770.0,0.43433564]
[1757523684058,0.00738692,113780.0,113770.0,0.43433564]
[1757523684707,0.00419692,113780.0,113770.0,0.43433564]
[1757523685484,0.00419692,113780.0,113770.0,0.50104902]
[1757523686298,0.00204692,113780.0,113770.0,0.45681012]
[1757523687414,0.00406692,113780.0,113770.0,0.45370012]
[1757523688270,0.00206692,113780.0,113770.0,0.45370012]
[1757523688676,0.00306692,113780.0,113770.0,0.45370012]
[1757523688881,0.00206692,113780.0,113770.0,0.45370012]
[1757523689292,0.00306692,113780.0,113770.0,0.45370012]
[1757523690143,0.00104692,113780.0,113770.0,0.45681012]
[1757523691396,0.0009678,113780.0,113770.0,0.45681012]
[1757523691997,0.0009678,113780.0,113770.0,0.48137012]
[1757523693906,0.18195561,113780.0,113770.0,0.45155012]
[1757523694764,0.18195561,113780.0,113770.0,0.53907364]
[1757523695195,0.18195561,113780.0,113770.0,0.54122364]
[1757523696432,0.0061778,113780.0,113770.0,0.54122364]
[1757523697033,0.18195561,113780.0,113770.0,0.54122364]
[1757523698229,0.17876561,113780.0,113770.0,0.54122364]
[1757523698428,0.0029878,113780.0,113770.0,0.54433364]
[1757523698672,0.0009678,113780.0,113770.0,0.54433364]
[1757523699430,0.0009678,113780.0,113770.0,0.9720255]
[1757523700760,0.0009678,113780.0,113770.0,0.99839682]
[1757523702583,0.0009678,113780.0,113770.0,0.99528682]
[1757523702584,0.0029878,113780.0,113770.0,0.99528682]
[1757523702788,0.0029878,113780.0,113770.0,0.97072682]
[1757523703012,0.18195561,113780.0,113770.0,0.9443555]
[1757523703761,0.18195561,113780.0,113770.0,0.9422055]
[1757523703959,0.18195561,113780.0,113770.0,0.56641224]
[1757523704163,0.18195561,113780.0,113770.0,0.47888872]
[1757523704387,0.18195561,113780.0,113770.0,0.41575686]
[1757523704818,0.18195561,113780.0,113770.0,0.43334686]
[1757523705035,0.18195561,113780.0,113770.0,0.59155012]
[1757523705212,0.18195561,113780.0,113770.0,0.41575686]
[1757523706019,0.42520047,113780.0,113770.0,0.0001]
[1757523706228,0.23065219,113780.0,113770.0,0.0474799]
[1757523706431,0.23065219,113780.0,113770.0,0.0001]
[1757523707274,0.23065219,113780.0,113770.0,0.00911487]
[1757523707479,0.23065219,113780.0,113770.0,0.0001]
[1757523709224,0.23065219,113780.0,113770.0,0.00871967]
[1757523710051,0.23065219,113780.0,113770.0,0.0001]
[1757523711683,0.42520047,113780.0,113770.0,0.0001]
[1757523712729,0.4516807,113780.0,113770.0,0.0001]
[1757523713158,0.4507129,113780.0,113770.0,0.0001]
[1757523713369,0.4537129,113780.0,113770.0,0.0001]
[1757523714422,0.25916462,113780.0,113770.0,0.0001]
[1757523714851,0.20091984,113770.0,113760.0,0.00885968]
[1757523715063,0.20394984,113770.0,113760.0,0.00885968]
[1757523715303,0.20592984,113770.0,113760.0,0.02419387]
[1757523715939,0.20592984,113770.0,113760.0,0.03282058]
[1757523716139,0.20692984,113770.0,113760.0,0.03282058]
[1757523716549,0.20792984,113770.0,113760.0,0.03282058]
[1757523721015,0.002,113770.0,113760.0,0.79347042]
[1757523721263,0.002,113770.0,113760.0,1.26153657]
[1757523721936,0.0002,113810.0,113780.0,0.17577781]
[1757523722167,0.00026911,113820.0,113810.0,0.17573148]
[1757523722414,0.00026911,113820.0,113810.0,0.71456374]
[1757523722639,0.0002,113840.0,113830.0,1.0657006]
[1757523723084,0.0002,113840.0,113830.0,1.0676706]
[1757523723297,0.0002,113840.0,113830.0,1.12522395]
[1757523723537,0.0003,113840.0,113830.0,1.2687753]
[1757523723763,0.0003,113840.0,113830.0,1.30027865]
[1757523723985,0.0003,113840.0,113830.0,1.31604222]
[1757523724204,0.00242083,113840.0,113830.0,1.32141394]
[1757523724421,0.00764873,113840.0,113830.0,0.1189529]
[1757523724648,0.1832339,113840.0,113830.0,0.03142172]
[1757523724855,0.1757006,113830.0,113820.0,0.07868864]
[1757523725064,0.1778985,113830.0,113820.0,0.03142172]
[1757523725293,0.1829085,113830.0,113820.0,0.07868864]
[1757523725511,0.1807106,113830.0,113820.0,0.1189529]
[1757523726503,0.23158718,113830.0,113820.0,0.03142172]
[1757523726737,0.23158718,113830.0,113820.0,0.0001]
[1757523726738,0.3191107,113830.0,113820.0,0.0001]
[1757523726967,0.4710427,113830.0,113820.0,0.0001]
[1757523727623,1.0129747,113830.0,113820.0,0.0001]
[1757523727838,0.02512658,113800.0,113790.0,0.07868864]
[1757523728053,0.2050514,113800.0,113790.0,0.07868864]
[1757523728269,0.2306335,113800.0,113790.0,0.07868864]
[1757523728711,0.47008902,113800.0,113790.0,0.03142172]
[1757523728917,0.20088894,113790.0,113780.0,0.0410828]
[1757523729131,0.20088894,113790.0,113780.0,0.00966108]
[1757523729347,0.23064894,113790.0,113780.0,0.00966108]
[1757523729761,0.03013658,113790.0,113780.0,0.22569558]
[1757523730017,0.0072079,113790.0,113780.0,0.22569558]
[1757523730233,0.00398,113790.0,113780.0,0.22766558]
[1757523730451,0.00398,113790.0,113780.0,0.19624386]
[1757523730661,0.0092079,113790.0,113780.0,0.19427386]
[1757523730842,0.18597026,113790.0,113780.0,0.19427386]
[1757523731100,0.18377236,113790.0,113780.0,0.19427386]
[1757523731746,0.18377236,113790.0,113780.0,0.01849605]
[1757523731970,0.20852236,113790.0,113780.0,0.00966108]
[1757523733088,0.18377236,113790.0,113780.0,0.00966108]
[1757523733302,0.00498,113790.0,113780.0,0.18740889]
[1757523733510,0.003,113790.0,113780.0,0.18740889]
[1757523733748,0.003,113790.0,113780.0,0.43904333]
[1757523734184,0.00498,113790.0,113780.0,0.43904333]
[1757523734399,0.00498,113790.0,113780.0,0.72656685]
[1757523734615,0.003,113790.0,113780.0,0.72971685]
[1757523734826,0.003,113790.0,113780.0,0.72656685]
[1757523735098,0.00498,113790.0,113780.0,0.72656685]
[1757523736499,0.003,113790.0,113780.0,0.72971685]
[1757523736945,0.003,113790.0,113780.0,1.06971685]
[1757523737183,0.003,113790.0,113780.0,1.09261685]
[1757523737398,0.003,113790.0,113780.0,1.09271685]
[1757523737861,0.003,113790.0,113780.0,1.08956685]
[1757523738070,0.003,113790.0,113780.0,1.06666685]
[1757523739177,0.00498,113790.0,113780.0,1.09808857]
[1757523739382,0.003,113790.0,113780.0,1.09808857]
[1757523739584,0.003,113790.0,113780.0,1.10123857]
[1757523739810,0.003,113790.0,113780.0,1.25227857]
[1757523740280,0.00498,113790.0,113780.0,1.24715857]
[1757523740506,0.00801,113790.0,113780.0,1.24715857]
[1757523740737,0.00801,113790.0,113780.0,1.24912857]
[1757523740975,0.003,113790.0,113780.0,1.24912857]
[1757523741661,0.00498,113790.0,113780.0,1.24912857]
[1757523742356,0.18597026,113790.0,113780.0,0.78377724]
[1757523742587,0.18377236,113790.0,113780.0,0.80732229]
[1757523742922,0.18377236,113790.0,113780.0,0.46732229]
[1757523743140,0.18377236,113790.0,113780.0,0.43590057]
[1757523743757,0.20889894,113790.0,113780.0,0.03330613]
[1757523745242,0.33166236,113790.0,113780.0,0.03534613]
[1757523745523,0.33166236,113790.0,113780.0,0.06676785]
[1757523745708,0.33480236,113790.0,113780.0,0.06676785]
[1757523745911,0.33480236,113790.0,113780.0,0.03330613]
[1757523746125,0.33480236,113790.0,113780.0,0.06238993]
[1757523746331,0.33480236,113790.0,113780.0,0.09381165]
[1757523746969,0.18388236,113790.0,113780.0,0.09381165]
[1757523747226,0.33480236,113790.0,113780.0,0.09381165]
[1757523749915,0.33480236,113790.0,113780.0,0.45028163]
[1757523749916,0.15368,113790.0,113780.0,0.45028163]
[1757523750161,0.003,113790.0,113780.0,0.64908133]
[1757523750841,0.003,113790.0,113780.0,0.67313133]
[1757523751078,0.003,113790.0,113780.0,0.96065485]
[1757523751753,0.003,113790.0,113780.0,1.30065485]
[1757523752266,0.003,113790.0,113780.0,1.24009313]
[1757523752267,0.00817,113790.0,113780.0,1.24009313]
[1757523752514,0.18393236,113790.0,113780.0,1.06431532]
[1757523752743,0.18393236,113790.0,113780.0,0.45756463]
[1757523752976,0.18393236,113790.0,113780.0,0.60892463]
[1757523754608,0.18393236,113790.0,113780.0,0.5774718]
[1757523754839,0.18393236,113790.0,113780.0,0.4261118]
[1757523755061,0.18393236,113790.0,113780.0,0.5773918]
[1757523755526,0.18393236,113790.0,113780.0,0.56773072]
[1757523755989,0.18393236,113790.0,113780.0,0.74350853]
[1757523756222,0.18393236,113790.0,113780.0,0.56773072]
[1757523756451,0.18393236,113790.0,113780.0,0.5204638]
[1757523756676,0.18393236,113790.0,113780.0,0.69624161]
[1757523757582,0.00817,113790.0,113780.0,0.75926417]
[1757523757802,0.18393236,113790.0,113780.0,0.75926417]
[1757523758551,0.003,113790.0,113780.0,1.07592769]
[1757523758759,0.003,113790.0,113780.0,1.01290513]
[1757523758980,0.003,113790.0,113780.0,1.29184472]
[1757523759207,0.0001,113810.0,113800.0,0.91574692]
[1757523759424,0.0001,113810.0,113800.0,1.37239826]
[1757523759652,0.0001,113810.0,113800.0,1.40153826]
[1757523760117,0.18762563,113830.0,113810.0,0.17572132]
[1757523760341,0.18102682,113820.0,113810.0,0.151]
[1757523760567,0.001,113810.0,113800.0,1.22131826]
[1757523760798,0.001,113810.0,113800.0,1.22335826]
[1757523761030,0.001,113810.0,113800.0,1.37736826]
[1757523761250,0.18390148,113810.0,113800.0,1.22131826]
[1757523761479,0.00817,113810.0,113800.0,1.37223826]
[1757523762177,0.00403,113810.0,113800.0,1.37427826]
[1757523762604,0.002,113810.0,113800.0,1.22640826]
[1757523762927,0.002,113810.0,113800.0,1.40137826]
[1757523763142,0.002,113810.0,113800.0,1.40153826]
[1757523763357,0.002,113810.0,113800.0,1.40163826]
[1757523763770,0.002,113810.0,113800.0,1.37453826]
[1757523764468,0.002,113810.0,113800.0,1.37758826]
[1757523764716,0.002,113810.0,113800.0,1.20184134]
[1757523765254,0.00717,113810.0,113800.0,1.19663134]
[1757523765473,0.002,113810.0,113800.0,1.1356347]
[1757523765726,0.002,113810.0,113800.0,1.20172134]
[1757523765946,0.00517,113810.0,113800.0,1.04567134]
[1757523766252,0.00517,113810.0,113800.0,1.1335947]
[1757523766372,0.00517,113810.0,113800.0,0.9826347]
[1757523766589,0.00878503,113830.0,113800.0,0.9826347]
[1757523766809,0.00203,113810.0,113800.0,0.9826347]
[1757523767144,0.03368538,113830.0,113800.0,1.1336347]
[1757523767367,0.03368538,113830.0,113820.0,0.02359703]
[1757523767571,0.03408538,113830.0,113820.0,0.03392241]
[1757523767786,0.03508538,113830.0,113820.0,0.03392241]
[1757523768216,0.02630035,113830.0,113820.0,0.03392241]
[1757523768605,0.02530035,113830.0,113820.0,0.03392241]
[1757523768836,0.02555035,113830.0,113820.0,0.03392241]
[1757523769496,0.02530035,113830.0,113820.0,0.03392241]
[1757523769967,0.00468035,113830.0,113820.0,0.03392241]
[1757523770192,0.00468035,113830.0,113820.0,0.0998752]
[1757523771260,0.00248245,113830.0,113820.0,0.1049652]
[1757523771886,0.00248245,113830.0,113820.0,0.2557652]
[1757523772094,0.00248245,113830.0,113820.0,0.1049652]
[1757523772300,0.00248245,113830.0,113820.0,0.2557252]
[1757523772763,0.00248245,113830.0,113820.0,0.1049652]
[1757523772991,0.00248245,113830.0,113820.0,0.2506352]
[1757523773200,0.0003,113840.0,113820.0,0.42395143]
[1757523773407,0.0003,113840.0,113830.0,0.00305]
[1757523773616,0.0003,113840.0,113830.0,0.17736703]
[1757523773903,0.0007,113840.0,113830.0,0.08411417]
[1757523774143,0.0007,113840.0,113830.0,0.23489417]
[1757523774359,0.0007,113840.0,113830.0,0.23184417]
[1757523774567,0.0037,113840.0,113830.0,0.23184417]
[1757523774776,0.0037,113840.0,113830.0,0.08116417]
[1757523775213,0.02765,113840.0,113830.0,0.17429703]
[1757523775848,0.0274,113840.0,113830.0,0.17429703]
[1757523776197,0.0037,113840.0,113830.0,0.02369703]
[1757523776382,0.0037,113840.0,113830.0,0.17425703]
[1757523776673,0.0037,113840.0,113830.0,0.02369703]
[1757523776802,0.0037,113840.0,113830.0,0.19254614]
[1757523777633,0.00395,113840.0,113830.0,0.19254614]
[1757523777808,0.02765,113840.0,113830.0,0.19254614]
[1757523778034,0.0274,113840.0,113830.0,0.19254614]
[1757523778665,0.02765,113840.0,113830.0,0.15054]
[1757523778891,0.02765,113840.0,113830.0,0.15058]
[1757523779632,0.0037,113840.0,113830.0,0.15058]
[1757523779837,0.0033,113840.0,113830.0,0.09640703]
[1757523780046,0.0033,113840.0,113830.0,0.28050599]
[1757523780248,0.0033,113840.0,113830.0,0.31867622]
[1757523780456,0.0024979,113850.0,113830.0,0.16823622]
[1757523780660,0.0024979,113850.0,113840.0,0.15044]
[1757523780858,0.0024979,113850.0,113830.0,0.16296622]
[1757523781073,0.0004,113840.0,113830.0,0.13150351]
[1757523781547,0.0004,113840.0,113830.0,0.28194351]
[1757523781981,0.0284479,113850.0,113830.0,0.28194351]
[1757523782802,0.0281979,113850.0,113830.0,0.31340622]
[1757523783428,0.0261979,113850.0,113830.0,0.31340622]
[1757523783676,0.001,113840.0,113830.0,0.31659622]
[1757523783873,0.001,113840.0,113830.0,0.31867622]
[1757523784081,0.0003,113850.0,113830.0,0.31867622]
[1757523785423,0.0003,113850.0,113840.0,0.02357569]
[1757523785665,0.0003,113850.0,113840.0,0.07544331]
[1757523785884,0.0003,113850.0,113840.0,0.07554331]
[1757523786514,0.0023,113850.0,113840.0,0.07554331]
[1757523786728,0.17796974,113850.0,113840.0,0.25122848]
[1757523787323,0.18016764,113850.0,113840.0,0.25122848]
[1757523787582,0.18016764,113850.0,113840.0,0.07554331]
[1757523788051,0.18016764,113850.0,113840.0,0.25122848]
[1757523788705,0.0023,113850.0,113840.0,0.25330848]
[1757523788940,0.0023,113850.0,113840.0,0.2643855]
[1757523789213,0.0023,113850.0,113840.0,0.31157956]
[1757523789698,0.0023,113850.0,113840.0,0.68447631]
[1757523789927,0.0003,113850.0,113840.0,0.68447631]
[1757523790157,0.0003,113850.0,113840.0,0.74751295]
[1757523790389,0.0013,113850.0,113840.0,0.68447631]
[1757523790625,0.0003,113850.0,113840.0,0.74751295]
[1757523790854,0.0003,113850.0,113840.0,0.74851295]
[1757523791504,0.0003,113850.0,113840.0,0.68547631]
[1757523791768,0.17596974,113850.0,113840.0,0.68547631]
[1757523791989,0.0003,113850.0,113840.0,0.68547631]
[1757523792218,0.17596974,113850.0,113840.0,0.68547631]
[1757523792444,0.17596974,113850.0,113840.0,0.73264783]
[1757523792677,0.0003,113850.0,113840.0,0.73264783]
[1757523793155,0.0003,113850.0,113840.0,0.68547631]
[1757523793664,0.0003,113850.0,113840.0,0.74851295]
[1757523793902,0.0003,113850.0,113840.0,1.14851295]
[1757523794160,0.0003,113850.0,113840.0,1.08447631]
[1757523794609,0.0003,113850.0,113840.0,1.08647631]
[1757523794830,0.0003,113850.0,113840.0,1.16332924]
[1757523795286,0.0003,113850.0,113840.0,1.16632924]
[1757523795744,0.0003,113850.0,113840.0,1.31628924]
[1757523795969,0.0003,113850.0,113840.0,1.31652924]
[1757523796433,0.0003,113850.0,113840.0,1.31352924]
[1757523796680,0.0003,113850.0,113840.0,1.31652924]
[1757523796957,0.0003,113850.0,113840.0,1.31648924]
[1757523799239,0.0003,113850.0,113840.0,1.16632924]
[1757523799472,0.0003,113850.0,113840.0,1.31644924]
[1757523799700,0.0003,113850.0,113840.0,1.31640924]
[1757523800348,0.0003,113850.0,113840.0,1.16984263]
[1757523800560,0.0003,113850.0,113840.0,1.31992263]
[1757523802065,0.0003,113850.0,113840.0,1.40194263]
[1757523802277,0.0003,113850.0,113840.0,1.4730497]
[1757523803130,0.0003,113870.0,113860.0,0.72565431]
[1757523803337,0.00076911,113870.0,113860.0,1.16507886]
[1757523803562,0.00076911,113870.0,113860.0,1.16715886]
[1757523803763,0.00076911,113870.0,113860.0,1.60260897]
[1757523804464,0.00076911,113870.0,113860.0,1.60360897]
[1757523804676,0.00076911,113870.0,113860.0,1.60362897]
[1757523805339,0.00076911,113870.0,113860.0,1.60358897]
[1757523805528,0.00076911,113870.0,113860.0,1.45374897]
[1757523805763,0.00076911,113870.0,113860.0,1.60354897]
[1757523807061,0.00076911,113870.0,113860.0,1.67024254]
[1757523807702,0.00076911,113870.0,113860.0,1.66924254]
[1757523808193,0.00076911,113870.0,113860.0,1.67124254]
[1757523809137,0.00076911,113870.0,113860.0,1.67116254]
[1757523811259,0.00076911,113870.0,113860.0,1.52144254]
[1757523811476,0.00076911,113870.0,113860.0,1.64705254]
[1757523811695,0.00076911,113870.0,113860.0,1.24705254]
[1757523811914,0.00076911,113870.0,113860.0,1.27156254]
[1757523813065,0.00076911,113870.0,113860.0,1.48228254]
[1757523813249,0.00076911,113870.0,113860.0,1.88228254]
[1757523813408,0.00076911,113870.0,113860.0,1.83531269]
[1757523813832,0.00076911,113870.0,113860.0,1.83387269]
[1757523814029,0.00076911,113870.0,113860.0,1.8838874]
[1757523814413,0.00076911,113870.0,113860.0,1.83387269]
[1757523815654,0.00076911,113870.0,113860.0,1.83587269]
[1757523816474,0.00076911,113870.0,113860.0,1.89849915]
[1757523820576,0.00076911,113870.0,113860.0,1.87398915]
[1757523821427,0.00076911,113870.0,113860.0,1.81136269]
[1757523821834,0.00076911,113870.0,113860.0,1.83587269]
[1757523823596,0.00076911,113870.0,113860.0,1.91472562]
[1757523827366,0.00076911,113870.0,113860.0,1.95253262]
[1757523832209,0.00076911,113870.0,113860.0,1.74181262]
[1757523832424,0.00076911,113870.0,113860.0,2.08181262]
[1757523832651,0.0002,113880.0,113870.0,0.17563888]
[1757523832870,0.00034068,113880.0,113870.0,0.60890303]
[1757523833094,0.00034068,113880.0,113870.0,0.60866755]
[1757523833309,0.00034068,113880.0,113870.0,1.00876755]
[1757523833754,0.00034068,113880.0,113870.0,1.01076755]
[1757523834873,0.00034068,113880.0,113870.0,0.86116755]
[1757523835108,0.00034068,113880.0,113870.0,1.01068755]
[1757523835311,0.00034068,113880.0,113870.0,0.86116755]
[1757523835537,0.00034068,113880.0,113870.0,1.32617755]
[1757523835771,0.00034068,113880.0,113870.0,0.91037876]
[1757523836218,0.00034068,113880.0,113870.0,1.31037876]
[1757523837044,0.00034068,113880.0,113870.0,0.91037876]
[1757523837475,0.00034068,113880.0,113870.0,1.31037876]
[1757523838442,0.17695414,113880.0,113870.0,1.16085876]
[1757523838696,0.00133068,113880.0,113870.0,0.91025876]
[1757523838924,0.00034068,113880.0,113870.0,0.91025876]
[1757523840067,0.17695414,113880.0,113870.0,0.06502518]
[1757523840294,0.17695414,113880.0,113870.0,0.19866876]
[1757523840524,0.17695414,113880.0,113870.0,0.37430764]
[1757523840752,0.17695414,113880.0,113870.0,0.19866876]
[1757523840983,0.17695414,113880.0,113870.0,0.37430764]
[1757523841216,0.00133068,113880.0,113870.0,0.46680882]
[1757523841687,0.00133068,113880.0,113870.0,0.46183882]
[1757523841937,0.17695414,113880.0,113870.0,0.37430764]
[1757523842170,0.17695414,113880.0,113870.0,0.37927764]
[1757523842397,0.00133068,113880.0,113870.0,0.37927764]
[1757523842700,0.00034068,113880.0,113870.0,0.41864406]
[1757523842937,0.00034068,113880.0,113870.0,0.59369876]
[1757523843399,0.00034068,113880.0,113870.0,0.66109876]
[1757523845278,0.00034068,113880.0,113870.0,1.06109876]
[1757523848145,0.00034068,113880.0,113870.0,1.03980876]
[1757523849289,0.17695414,113880.0,113870.0,0.28414518]
[1757523849531,0.17915204,113880.0,113870.0,0.39685888]
[1757523850170,0.00352858,113880.0,113870.0,0.39980888]
[1757523850365,0.00253858,113880.0,113870.0,0.40182888]
[1757523850609,0.00253858,113880.0,113870.0,0.48936006]
[1757523850812,0.00034068,113880.0,113870.0,0.57688358]
[1757523851041,0.00034068,113880.0,113870.0,0.63980876]
[1757523851257,0.00034068,113880.0,113870.0,0.66345876]
[1757523851476,0.00034068,113880.0,113870.0,0.80053358]
[1757523851617,0.00034068,113880.0,113870.0,1.14053358]
[1757523851830,0.00034068,113880.0,113870.0,1.21925755]
[1757523852039,0.00034068,113880.0,113870.0,1.22277057]
[1757523853372,0.00034068,113880.0,113870.0,1.62277057]
[1757523856093,0.00034068,113880.0,113870.0,1.62245057]
[1757523856319,0.00034068,113880.0,113870.0,1.47105057]
[1757523856530,0.00034068,113880.0,113870.0,1.62245057]
[1757523857647,0.00034068,113880.0,113870.0,1.47105057]
[1757523857899,0.00034068,113880.0,113870.0,1.59876057]
[1757523858134,0.00034068,113880.0,113870.0,1.44740057]
[1757523858339,0.00034068,113880.0,113870.0,1.5200366]
[1757523858561,0.00034068,113880.0,113870.0,1.3686766]
[1757523858785,0.00133068,113880.0,113870.0,0.77159358]
[1757523859009,0.00133068,113880.0,113870.0,0.83449355]
[1757523859230,0.00133068,113880.0,113870.0,0.83744355]
[1757523859448,0.17695414,113880.0,113870.0,0.83744355]
[1757523859667,0.17695414,113880.0,113870.0,1.23744355]
[1757523859882,0.00133068,113880.0,113870.0,1.23744355]
[1757523860316,0.00133068,113880.0,113870.0,0.83744355]
[1757523860545,0.17695414,113880.0,113870.0,0.68309355]
[1757523860763,0.17695414,113880.0,113870.0,0.83437355]
[1757523860991,0.17915204,113880.0,113870.0,0.74685003]
[1757523861654,0.17915204,113880.0,113870.0,0.68395006]
[1757523862182,0.00034068,113880.0,113870.0,0.77644358]
[1757523862401,0.00034068,113880.0,113870.0,0.86299355]
[1757523864389,0.00034068,113880.0,113870.0,1.26299355]
[1757523867124,0.00034068,113880.0,113870.0,0.86299355]
[1757523867576,0.00034068,113880.0,113870.0,1.26299355]
[1757523868934,0.00034068,113880.0,113870.0,1.23898355]
[1757523872999,0.00034068,113880.0,113870.0,1.26161355]
[1757523875331,0.00034068,113880.0,113870.0,1.60161355]
[1757523875548,0.00034068,113880.0,113870.0,1.80161355]
[1757523875762,0.00034068,113880.0,113870.0,1.73871358]
[1757523877798,0.00034068,113880.0,113870.0,1.74222667]
[1757523879508,0.00034068,113880.0,113870.0,1.74182667]
[1757523880939,0.00034068,113880.0,113870.0,1.56867667]
[1757523881137,0.00034068,113880.0,113870.0,1.71915667]
[1757523881584,0.00034068,113880.0,113870.0,1.7785158]
[1757523885571,0.00034068,113880.0,113870.0,1.73827358]
[1757523886420,0.00034068,113880.0,113870.0,1.58779358]
[1757523886659,0.00034068,113880.0,113870.0,1.73807358]
[1757523896106,0.00034068,113880.0,113870.0,1.71544358]
[1757523896342,0.00034068,113880.0,113870.0,1.79416755]
[1757523897618,0.00026082,113880.0,113870.0,1.79400491]
[1757523898881,0.00026082,113880.0,113870.0,1.64372491]
[1757523899079,0.00026082,113880.0,113870.0,1.71486094]
[1757523899284,0.00026082,113880.0,113870.0,1.56510094]
[1757523899496,0.00125082,113880.0,113870.0,1.56510094]
[1757523899648,0.00125082,113880.0,113870.0,0.54517418]
[1757523899649,0.17687428,113880.0,113870.0,0.54517418]
[1757523900105,0.17687428,113880.0,113870.0,0.94517418]
[1757523900707,0.17687428,113880.0,113870.0,0.54517418]
[1757523901484,0.00125082,113880.0,113870.0,0.54823418]
[1757523902151,0.00125082,113880.0,113870.0,0.39855418]
[1757523902332,0.00125082,113880.0,113870.0,0.54815418]
[1757523902504,0.17687428,113880.0,113870.0,0.39549418]
[1757523902716,0.17687428,113880.0,113870.0,0.13232412]
[1757523902992,0.20139428,113880.0,113870.0,0.11663099]
[1757523903196,0.20139428,113880.0,113870.0,0.26623099]
[1757523903607,0.20139428,113880.0,113870.0,0.29772699]
[1757523904435,0.20139428,113880.0,113870.0,0.25053336]
[1757523907828,0.20139428,113880.0,113870.0,0.18313336]
[1757523911814,0.20139428,113880.0,113870.0,0.15159736]
[1757523912046,0.22652086,113880.0,113870.0,0.00203736]
[1757523912296,0.22652086,113880.0,113870.0,0.15159736]
[1757523912744,0.22652086,113880.0,113870.0,0.00203736]
[1757523912956,0.22652086,113880.0,113870.0,0.15159736]
[1757523914375,0.20077428,113880.0,113870.0,0.1736834]
[1757523914589,0.17687428,113880.0,113870.0,0.1787134]
[1757523914800,0.00026082,113880.0,113870.0,0.38800376]
[1757523915095,0.00026082,113880.0,113870.0,0.38580828]
[1757523917593,0.00026082,113880.0,113870.0,0.4660158]
[1757523917805,0.00026082,113880.0,113870.0,0.89525259]
[1757523918019,0.00026082,113880.0,113870.0,1.29525259]
[1757523920656,0.00026082,113880.0,113870.0,1.29553259]
[1757523923052,0.00026082,113880.0,113870.0,1.36293259]